[Event "SS Manhem Chess Week 2022: IM Tournament"]
[Site "Schackcentrum, Vegagatan 20, Gothenburg, Sweden"]
[Date "2022.08.08"]
[Round "4.3"]
[White "Mitusov, Semen"]
[Black "Ingebretsen, Jens E"]
[Result "1/2-1/2"]
[TimeControl "90 minutes for 40 moves + 30 minutes for the rest of the game + 30 seconds per move from move one."]
[WhiteTitle "FM"]
[BlackTitle "FM"]
[WhiteFideId "14151049"]
[BlackFideId "1522965"]
[WhiteElo "2415"]
[BlackElo "2325"]

1. e4 {[%clk 01:30:28]} {[%emt 00:00:31]} e5 {[%clk 01:30:54]} {[%emt
00:00:05]} 2. Nf3 {[%clk 01:30:34]} {[%emt 00:00:25]} Nc6 {[%clk 01:31:19]}
{[%emt 00:00:05]} 3. Bc4 {[%clk 01:30:59]} {[%emt 00:00:05]} Nf6 {[%clk
01:31:45]} {[%emt 00:00:05]} 4. d3 {[%clk 01:31:23]} {[%emt 00:00:06]} Bc5
{[%clk 01:32:11]} {[%emt 00:00:04]} 5. c3 {[%clk 01:31:38]} {[%emt 00:00:15]}
a5 {[%clk 01:32:19]} {[%emt 00:00:22]} 6. Nbd2 {[%clk 01:29:27]} {[%emt
00:02:40]} d6 {[%clk 01:30:37]} {[%emt 00:02:13]} 7. Nf1 {[%clk 01:28:49]}
{[%emt 00:01:08]} Be6 {[%clk 01:27:44]} {[%emt 00:03:22]} 8. Bb5 {[%clk
01:28:57]} {[%emt 00:00:22]} O-O {[%clk 01:27:12]} {[%emt 00:01:01]} 9. Ng3
{[%clk 01:28:51]} {[%emt 00:00:36]} Qb8 {[%clk 01:20:40]} {[%emt 00:07:02]} 10.
O-O {[%clk 01:26:43]} {[%emt 00:02:38]} Qa7 {[%clk 01:20:43]} {[%emt 00:00:27]}
11. h3 {[%clk 01:24:53]} {[%emt 00:02:20]} h6 {[%clk 01:18:20]} {[%emt
00:02:54]} 12. Ba4 {[%clk 01:22:47]} {[%emt 00:02:36]} Rad8 {[%clk 01:15:58]}
{[%emt 00:02:51]} 13. Qe2 {[%clk 01:19:21]} {[%emt 00:03:57]} Ne7 {[%clk
01:15:11]} {[%emt 00:01:17]} 14. Nh4 {[%clk 01:16:40]} {[%emt 00:03:11]} Ng6
{[%clk 01:12:23]} {[%emt 00:03:17]} 15. Nxg6 {[%clk 01:05:57]} {[%emt
00:11:13]} fxg6 {[%clk 01:12:47]} {[%emt 00:00:05]} 16. Be3 {[%clk 01:06:21]}
{[%emt 00:00:07]} c6 {[%clk 01:08:20]} {[%emt 00:04:58]} 17. Bxc5 {[%clk
01:04:09]} {[%emt 00:02:41]} Qxc5 {[%clk 01:07:02]} {[%emt 00:01:48]} 18. Rfd1
{[%clk 00:58:50]} {[%emt 00:05:49]} Qb6 {[%clk 01:01:22]} {[%emt 00:06:10]} 19.
d4 {[%clk 00:54:36]} {[%emt 00:04:45]} Nh7 {[%clk 00:57:47]} {[%emt 00:04:03]}
20. d5 {[%clk 00:46:21]} {[%emt 00:08:46]} Bc8 {[%clk 00:55:41]} {[%emt
00:02:36]} 21. dxc6 {[%clk 00:43:20]} {[%emt 00:03:31]} bxc6 {[%clk 00:55:50]}
{[%emt 00:00:21]} 22. Bb3+ {[%clk 00:42:59]} {[%emt 00:00:52]} Kh8 {[%clk
00:56:05]} {[%emt 00:00:13]} 23. Rd2 {[%clk 00:43:03]} {[%emt 00:00:26]} Rf6
{[%clk 00:51:15]} {[%emt 00:05:20]} 24. Rad1 {[%clk 00:43:01]} {[%emt
00:00:33]} Rdf8 {[%clk 00:49:42]} {[%emt 00:02:03]} 25. Nh1 {[%clk 00:42:22]}
{[%emt 00:01:10]} Qc7 {[%clk 00:48:19]} {[%emt 00:01:53]} 26. h4 {[%clk
00:36:11]} {[%emt 00:06:41]} g5 {[%clk 00:45:40]} {[%emt 00:03:08]} 27. h5
{[%clk 00:35:47]} {[%emt 00:00:55]} g4 {[%clk 00:45:38]} {[%emt 00:00:32]} 28.
Qe3 {[%clk 00:33:23]} {[%emt 00:02:54]} Ng5 {[%clk 00:45:12]} {[%emt 00:00:56]}
29. Ng3 {[%clk 00:33:14]} {[%emt 00:00:40]} Rd8 {[%clk 00:37:27]} {[%emt
00:08:15]} 30. a4 {[%clk 00:27:49]} {[%emt 00:05:55]} Rdf8 {[%clk 00:34:53]}
{[%emt 00:03:04]} 31. Bc4 {[%clk 00:27:28]} {[%emt 00:00:52]} Qb8 {[%clk
00:32:47]} {[%emt 00:02:36]} 32. Rb1 {[%clk 00:24:35]} {[%emt 00:03:23]} Rf4
{[%clk 00:30:43]} {[%emt 00:02:33]} 33. Rbd1 {[%clk 00:23:04]} {[%emt
00:02:01]} d5 {[%clk 00:28:58]} {[%emt 00:02:14]} 34. Bd3 {[%clk 00:22:44]}
{[%emt 00:00:50]} Be6 {[%clk 00:26:12]} {[%emt 00:03:17]} 35. Bc2 {[%clk
00:21:45]} {[%emt 00:01:29]} R8f6 {[%clk 00:19:33]} {[%emt 00:07:09]} 36. Rf1
{[%clk 00:18:38]} {[%emt 00:03:37]} Bg8 {[%clk 00:18:30]} {[%emt 00:01:33]} 37.
Re1 {[%clk 00:17:04]} {[%emt 00:02:04]} Qf8 {[%clk 00:16:41]} {[%emt 00:02:19]}
38. Ree2 {[%clk 00:12:53]} {[%emt 00:04:41]} d4 {[%clk 00:06:28]} {[%emt
00:10:43]} 39. Qd3 {[%clk 00:12:45]} {[%emt 00:00:38]} Nf3+ {[%clk 00:05:32]}
{[%emt 00:01:26]} 40. gxf3 {[%clk 00:10:27]} {[%emt 00:02:49]} Rxf3 {[%clk
00:05:25]} {[%emt 00:00:36]} 41. cxd4 {[%clk 00:08:05]} {[%emt 00:02:52]} Rxd3
{[%clk 00:04:35]} {[%emt 00:01:20]} 42. Bxd3 {[%clk 00:08:30]} {[%emt
00:00:05]} Rf3 {[%clk 00:26:44]} {[%emt 00:08:21]} 43. dxe5 {[%clk 00:38:14]}
{[%emt 00:00:46]} Qc5 {[%clk 00:26:51]} {[%emt 00:00:22]} 44. Nf5 {[%clk
00:36:50]} {[%emt 00:01:55]} Qxe5 {[%clk 00:26:02]} {[%emt 00:01:19]} 45. Bc2
{[%clk 00:35:59]} {[%emt 00:01:21]} c5 {[%clk 00:19:32]} {[%emt 00:07:00]} 46.
Kg2 {[%clk 00:34:43]} {[%emt 00:01:47]} c4 {[%clk 00:19:18]} {[%emt 00:00:45]}
47. Bb1 {[%clk 00:34:07]} {[%emt 00:01:06]} Rb3 {[%clk 00:13:02]} {[%emt
00:06:45]} 48. Rd8 {[%clk 00:33:26]} {[%emt 00:01:11]} Rh3 {[%clk 00:09:28]}
{[%emt 00:04:04]} 49. Ng3 {[%clk 00:32:35]} {[%emt 00:01:22]} Kh7 {[%clk
00:07:16]} {[%emt 00:02:43]} 50. Rf8 {[%clk 00:27:32]} {[%emt 00:05:33]} Be6
{[%clk 00:06:35]} {[%emt 00:01:10]} 51. Re8 {[%clk 00:25:48]} {[%emt 00:02:14]}
g6 {[%clk 00:04:46]} {[%emt 00:02:20]} 52. Rd2 {[%clk 00:18:49]} {[%emt
00:07:29]} gxh5 {[%clk 00:03:38]} {[%emt 00:01:38]} 53. Re7+ {[%clk 00:16:05]}
{[%emt 00:03:14]} Kg6 {[%clk 00:04:01]} {[%emt 00:00:07]} 54. Rd6 {[%clk
00:16:19]} {[%emt 00:00:17]} Rxg3+ {[%clk 00:03:53]} {[%emt 00:00:39]} 55. Kf1
{[%clk 00:16:41]} {[%emt 00:00:07]} Qxb2 {[%clk 00:03:01]} {[%emt 00:01:22]} 56.
Rexe6+ {[%clk 00:16:23]} {[%emt 00:00:49]} Kf7 {[%clk 00:01:11]} {[%emt
00:02:20]} 57. Rf6+ {[%clk 00:16:34]} {[%emt 00:00:19]} 1/2-1/2

[Event "SS Manhem Chess Week 2022: IM Tournament"]
[Site "Schackcentrum, Vegagatan 20, Gothenburg, Sweden"]
[Date "2022.08.08"]
[Round "4.4"]
[White "Olsson, William"]
[Black "Kucuksari, Kaan"]
[Result "0-1"]
[TimeControl "90 minutes for 40 moves + 30 minutes for the rest of the game + 30 seconds per move from move one."]
[WhiteTitle "FM"]
[BlackTitle "FM"]
[WhiteFideId "1741721"]
[BlackFideId "6380166"]
[WhiteElo "2311"]
[BlackElo "2398"]

1. c4 {[%clk 01:30:59]} {[%emt 00:00:01]} f5 {[%clk 01:30:15]} {[%emt
00:00:45]} 2. Nc3 {[%clk 01:31:19]} {[%emt 00:00:10]} Nf6 {[%clk 01:30:35]}
{[%emt 00:00:10]} 3. Nf3 {[%clk 01:31:38]} {[%emt 00:00:12]} g6 {[%clk
01:30:50]} {[%emt 00:00:14]} 4. g3 {[%clk 01:31:54]} {[%emt 00:00:13]} Bg7
{[%clk 01:31:02]} {[%emt 00:00:19]} 5. Bg2 {[%clk 01:32:16]} {[%emt 00:00:08]}
O-O {[%clk 01:31:23]} {[%emt 00:00:08]} 6. O-O {[%clk 01:32:34]} {[%emt
00:00:13]} d6 {[%clk 01:31:47]} {[%emt 00:00:06]} 7. d4 {[%clk 01:32:58]}
{[%emt 00:00:07]} Qe8 {[%clk 01:32:10]} {[%emt 00:00:07]} 8. d5 {[%clk
01:31:25]} {[%emt 00:02:02]} Na6 {[%clk 01:32:33]} {[%emt 00:00:06]} 9. Be3
{[%clk 01:25:44]} {[%emt 00:06:11]} Bd7 {[%clk 01:31:57]} {[%emt 00:01:07]} 10.
Rc1 {[%clk 01:11:24]} {[%emt 00:14:51]} h6 {[%clk 01:22:03]} {[%emt 00:10:23]}
11. a3 {[%clk 01:06:03]} {[%emt 00:05:52]} c5 {[%clk 01:16:17]} {[%emt
00:06:15]} 12. Ne1 {[%clk 01:01:41]} {[%emt 00:04:52]} g5 {[%clk 01:10:32]}
{[%emt 00:06:14]} 13. Bd2 {[%clk 00:54:51]} {[%emt 00:07:20]} Nc7 {[%clk
00:58:22]} {[%emt 00:12:40]} 14. b4 {[%clk 00:49:34]} {[%emt 00:05:47]} b6
{[%clk 00:54:53]} {[%emt 00:04:00]} 15. Nd3 {[%clk 00:47:26]} {[%emt 00:02:39]}
Qg6 {[%clk 00:53:43]} {[%emt 00:01:39]} 16. f3 {[%clk 00:43:55]} {[%emt
00:04:02]} e6 {[%clk 00:39:50]} {[%emt 00:14:22]} 17. bxc5 {[%clk 00:42:19]}
{[%emt 00:02:06]} bxc5 {[%clk 00:38:43]} {[%emt 00:01:38]} 18. f4 {[%clk
00:33:00]} {[%emt 00:09:48]} exd5 {[%clk 00:29:23]} {[%emt 00:09:50]} 19. Nxd5
{[%clk 00:32:12]} {[%emt 00:01:18]} Ncxd5 {[%clk 00:28:35]} {[%emt 00:01:19]}
20. cxd5 {[%clk 00:32:21]} {[%emt 00:00:19]} Rfe8 {[%clk 00:22:57]} {[%emt
00:06:09]} 21. Nf2 {[%clk 00:30:36]} {[%emt 00:02:15]} Rab8 {[%clk 00:20:20]}
{[%emt 00:03:06]} 22. e3 {[%clk 00:28:35]} {[%emt 00:02:31]} Qf7 {[%clk
00:14:34]} {[%emt 00:06:17]} 23. Ba5 {[%clk 00:27:54]} {[%emt 00:01:12]} Rxe3
{[%clk 00:11:18]} {[%emt 00:03:45]} 24. Bc7 {[%clk 00:28:05]} {[%emt 00:00:19]}
Rb2 {[%clk 00:09:44]} {[%emt 00:02:04]} 25. Bxd6 {[%clk 00:28:24]} {[%emt
00:00:11]} Ree2 {[%clk 00:05:00]} {[%emt 00:05:14]} 26. fxg5 {[%clk 00:25:42]}
{[%emt 00:03:12]} Ne4 {[%clk 00:01:02]} {[%emt 00:04:28]} 27. Bxe4 {[%clk
00:20:16]} {[%emt 00:05:56]} fxe4 {[%clk 00:01:31]} {[%emt 00:00:01]} 28. Bxc5
{[%clk 00:20:37]} {[%emt 00:00:10]} Qf3 {[%clk 00:00:46]} {[%emt 00:01:15]} 29.
Rb1 {[%clk 00:19:03]} {[%emt 00:02:04]} Bh3 {[%clk 00:00:53]} {[%emt 00:00:22]}
30. Rxb2 {[%clk 00:19:29]} {[%emt 00:00:05]} Qg2# {[%clk 00:01:19]} {[%emt
00:00:04]} 0-1

[Event "SS Manhem Chess Week 2022: IM Tournament"]
[Site "Schackcentrum, Vegagatan 20, Gothenburg, Sweden"]
[Date "2022.08.08"]
[Round "4.5"]
[White "Jacobsen, Mikkel Manosri"]
[Black "Ernst, Thomas"]
[Result "1-0"]
[TimeControl "90 minutes for 40 moves + 30 minutes for the rest of the game + 30 seconds per move from move one."]
[WhiteTitle "FM"]
[BlackTitle "GM"]
[WhiteFideId "1444514"]
[BlackFideId "1700065"]
[WhiteElo "2320"]
[BlackElo "2323"]

1. d4 {[%clk 01:30:56]} {[%emt 00:00:03]} Nf6 {[%clk 01:30:51]} {[%emt
00:00:09]} 2. c4 {[%clk 01:31:21]} {[%emt 00:00:06]} g6 {[%clk 01:31:11]}
{[%emt 00:00:10]} 3. Nc3 {[%clk 01:31:46]} {[%emt 00:00:05]} d5 {[%clk
01:31:34]} {[%emt 00:00:06]} 4. cxd5 {[%clk 01:32:12]} {[%emt 00:00:05]} Nxd5
{[%clk 01:32:00]} {[%emt 00:00:05]} 5. e4 {[%clk 01:32:37]} {[%emt 00:00:05]}
Nxc3 {[%clk 01:32:24]} {[%emt 00:00:06]} 6. bxc3 {[%clk 01:33:04]} {[%emt
00:00:02]} Bg7 {[%clk 01:32:44]} {[%emt 00:00:10]} 7. Qa4+ {[%clk 01:33:30]}
{[%emt 00:00:05]} Qd7 {[%clk 01:32:50]} {[%emt 00:00:23]} 8. Qa3 {[%clk
01:30:31]} {[%emt 00:03:29]} b6 {[%clk 01:32:52]} {[%emt 00:00:27]} 9. Nf3
{[%clk 01:25:54]} {[%emt 00:05:07]} c5 {[%clk 01:29:48]} {[%emt 00:03:33]} 10.
Be3 {[%clk 01:17:17]} {[%emt 00:09:08]} cxd4 {[%emt 00:16:30]} 11. cxd4 {[%clk
01:16:03]} {[%emt 00:01:42]} Bb7 {[%clk 01:14:06]} {[%emt 00:00:13]} 12. Bd3
{[%clk 01:15:23]} {[%emt 00:01:10]} Nc6 {[%clk 01:10:34]} {[%emt 00:04:02]} 13.
O-O {[%clk 01:12:03]} {[%emt 00:03:50]} Nxd4 {[%clk 01:05:00]} {[%emt
00:06:05]} 14. Bxd4 {[%clk 01:08:48]} {[%emt 00:03:45]} Bxd4 {[%clk 01:05:20]}
{[%emt 00:00:09]} 15. Nxd4 {[%clk 01:09:16]} {[%emt 00:00:04]} Qxd4 {[%emt
00:00:09]} 16. Bb5+ {[%clk 01:09:42]} Kf8 {[%clk 01:06:04]} {[%emt 00:00:09]}
17. Rad1 {[%clk 01:08:03]} {[%emt 00:02:09]} Qxe4 {[%clk 00:55:19]} {[%emt
00:11:14]} 18. f3 {[%clk 01:08:08]} {[%emt 00:00:26]} Qh4 {[%clk 00:55:09]}
{[%emt 00:00:36]} 19. Qc3 {[%clk 01:03:47]} {[%emt 00:04:55]} Qf6 {[%clk
00:52:08]} {[%emt 00:03:31]} 20. Qc7 {[%clk 01:02:42]} {[%emt 00:01:35]} Bc8
{[%clk 00:52:09]} {[%emt 00:00:28]} 21. Bc6 {[%clk 01:01:31]} {[%emt 00:01:41]}
Ba6 {[%clk 00:46:32]} {[%emt 00:06:08]} 22. Bxa8 {[%clk 01:00:45]} {[%emt
00:01:16]} Bxf1 {[%clk 00:46:52]} {[%emt 00:00:10]} 23. Kxf1 {[%clk 01:00:31]}
{[%emt 00:00:43]} Kg7 {[%clk 00:47:11]} {[%emt 00:00:12]} 24. Qxa7 {[%clk
00:59:41]} {[%emt 00:01:20]} Qe5 {[%clk 00:47:07]} {[%emt 00:00:32]} 25. Be4
{[%clk 00:58:24]} {[%emt 00:01:48]} Qxh2 {[%clk 00:46:51]} {[%emt 00:00:46]} 26.
Qxb6 {[%clk 00:58:40]} {[%emt 00:00:16]} Rb8 {[%clk 00:46:24]} {[%emt
00:00:54]} 27. Qg1 {[%clk 00:55:53]} {[%emt 00:03:18]} Qf4 {[%clk 00:45:35]}
{[%emt 00:01:11]} 28. Qf2 {[%clk 00:49:52]} {[%emt 00:06:39]} f5 {[%clk
00:43:25]} {[%emt 00:02:38]} 29. Qd4+ {[%clk 00:46:15]} {[%emt 00:04:08]} Kh6
{[%clk 00:43:31]} {[%emt 00:00:23]} 30. Bc2 {[%clk 00:45:26]} {[%emt 00:01:19]}
Qxd4 {[%clk 00:42:58]} {[%emt 00:01:05]} 31. Rxd4 {[%clk 00:45:54]} {[%emt
00:00:02]} Rb2 {[%clk 00:43:10]} {[%emt 00:00:15]} 32. Bb3 {[%clk 00:46:16]}
{[%emt 00:00:09]} Kg5 {[%clk 00:42:25]} {[%emt 00:01:14]} 33. Rb4 {[%clk
00:45:33]} {[%emt 00:01:14]} e5 {[%clk 00:42:07]} {[%emt 00:00:48]} 34. a4
{[%clk 00:44:52]} {[%emt 00:01:12]} e4 {[%clk 00:39:40]} {[%emt 00:02:57]} 35.
fxe4 {[%clk 00:45:14]} {[%emt 00:00:07]} fxe4 {[%clk 00:40:06]} {[%emt
00:00:05]} 36. a5 {[%clk 00:45:31]} {[%emt 00:00:12]} Kf4 {[%clk 00:40:25]}
{[%emt 00:00:10]} 37. a6 {[%clk 00:45:26]} {[%emt 00:00:37]} Ke3 {[%clk
00:40:43]} {[%emt 00:00:10]} 38. Kg1 {[%clk 00:45:26]} {[%emt 00:00:30]} g5
{[%clk 00:40:52]} {[%emt 00:00:22]} 39. a7 {[%clk 00:45:23]} {[%emt 00:00:33]}
g4 {[%clk 00:41:11]} {[%emt 00:00:32]} 1-0

[Event "SS Manhem Chess Week 2022: IM Tournament"]
[Site "Schackcentrum, Vegagatan 20, Gothenburg, Sweden"]
[Date "2022.08.09"]
[Round "5.1"]
[White "Pantzar, Milton"]
[Black "Johnson, Daniel"]
[Result "1-0"]
[TimeControl "90 minutes for 40 moves + 30 minutes for the rest of the game + 30 seconds per move from move one."]
[WhiteTitle "IM"]
[WhiteFideId "1721003"]
[BlackFideId "1721283"]
[WhiteElo "2447"]
[BlackElo "2207"]

1. d4 {[%clk 01:30:58]} {[%emt 00:00:01]} d5 {[%clk 01:18:38]} {[%emt
00:12:23]} 2. c4 {[%clk 01:31:14]} {[%emt 00:00:14]} e6 {[%clk 01:19:02]}
{[%emt 00:00:06]} 3. Nf3 {[%clk 01:31:32]} {[%emt 00:00:11]} Nf6 {[%clk
01:15:23]} {[%emt 00:04:10]} 4. g3 {[%clk 01:31:35]} {[%emt 00:00:27]} Be7
{[%clk 01:15:29]} {[%emt 00:00:23]} 5. Bg2 {[%clk 01:31:45]} {[%emt 00:00:21]}
O-O {[%clk 01:15:52]} {[%emt 00:00:07]} 6. O-O {[%clk 01:32:02]} {[%emt
00:00:13]} dxc4 {[%clk 01:16:12]} {[%emt 00:00:09]} 7. Qc2 {[%clk 01:32:02]}
{[%emt 00:00:31]} a6 {[%clk 01:16:11]} {[%emt 00:00:31]} 8. a4 {[%clk
01:32:05]} {[%emt 00:00:27]} Bd7 {[%clk 01:15:36]} {[%emt 00:01:04]} 9. Qxc4
{[%clk 01:32:21]} {[%emt 00:00:14]} Bc6 {[%clk 01:15:39]} {[%emt 00:00:26]} 10.
Bf4 {[%clk 01:32:14]} {[%emt 00:00:38]} Bd6 {[%clk 01:13:24]} {[%emt 00:02:45]}
11. Nc3 {[%clk 01:31:12]} {[%emt 00:01:32]} Nbd7 {[%clk 01:11:34]} {[%emt
00:02:20]} 12. a5 {[%clk 01:25:14]} {[%emt 00:06:28]} Qe7 {[%clk 01:11:21]}
{[%emt 00:00:43]} 13. Bd2 {[%clk 01:22:23]} {[%emt 00:03:21]} Rfd8 {[%clk
00:54:45]} {[%emt 00:17:06]} 14. Rfd1 {[%clk 01:19:12]} {[%emt 00:03:41]} h6
{[%clk 00:54:59]} {[%emt 00:00:15]} 15. Be1 {[%clk 01:14:30]} {[%emt 00:05:12]}
Rab8 {[%clk 00:44:41]} {[%emt 00:10:47]} 16. Rac1 {[%clk 01:08:46]} {[%emt
00:06:16]} Bd5 {[%clk 00:38:09]} {[%emt 00:07:02]} 17. Qa4 {[%clk 01:05:45]}
{[%emt 00:03:31]} Bxf3 {[%clk 00:32:53]} {[%emt 00:05:46]} 18. Bxf3 {[%clk
01:05:40]} {[%emt 00:00:35]} c6 {[%clk 00:32:21]} {[%emt 00:01:01]} 19. Bg2
{[%clk 00:58:15]} {[%emt 00:07:56]} e5 {[%clk 00:31:05]} {[%emt 00:01:46]} 20.
d5 {[%clk 00:53:09]} {[%emt 00:05:35]} cxd5 {[%clk 00:25:10]} {[%emt 00:06:26]}
21. Nxd5 {[%clk 00:52:55]} {[%emt 00:00:44]} Nxd5 {[%clk 00:25:05]} {[%emt
00:00:35]} 22. Bxd5 {[%clk 00:49:49]} {[%emt 00:03:35]} Nf6 {[%clk 00:24:50]}
{[%emt 00:00:45]} 23. Bg2 {[%clk 00:49:16]} {[%emt 00:01:03]} e4 {[%clk
00:20:39]} {[%emt 00:04:40]} 24. e3 {[%clk 00:46:48]} {[%emt 00:02:58]} Be5
{[%clk 00:16:24]} {[%emt 00:04:46]} 25. Qb3 {[%clk 00:33:39]} {[%emt 00:13:39]}
Rxd1 {[%clk 00:15:12]} {[%emt 00:01:41]} 26. Rxd1 {[%clk 00:33:56]} {[%emt
00:00:13]} Qc5 {[%clk 00:14:52]} {[%emt 00:00:50]} 27. Bb4 {[%clk 00:31:05]}
{[%emt 00:03:22]} Qc6 {[%clk 00:13:26]} {[%emt 00:01:55]} 28. Be7 {[%clk
00:26:00]} {[%emt 00:05:35]} b6 {[%clk 00:03:17]} {[%emt 00:10:40]} 29. axb6
{[%clk 00:18:42]} {[%emt 00:07:49]} Qxb6 {[%clk 00:00:43]} {[%emt 00:03:04]} 30.
Qxb6 {[%clk 00:11:01]} {[%emt 00:08:12]} Rxb6 {[%clk 00:01:06]} {[%emt
00:00:07]} 31. Rd8+ {[%clk 00:11:06]} {[%emt 00:00:25]} Kh7 {[%clk 00:01:14]}
{[%emt 00:00:21]} 32. Bxf6 {[%clk 00:11:16]} {[%emt 00:00:20]} Rxf6 {[%clk
00:00:58]} {[%emt 00:00:46]} 33. Bxe4+ {[%clk 00:11:34]} {[%emt 00:00:12]} g6
{[%clk 00:01:21]} {[%emt 00:00:06]} 34. b3 {[%clk 00:11:07]} {[%emt 00:00:57]}
Kg7 {[%clk 00:00:37]} {[%emt 00:01:14]} 35. Bd3 {[%clk 00:08:22]} {[%emt
00:03:16]} a5 {[%clk 00:00:34]} {[%emt 00:00:33]} 36. Bc4 {[%clk 00:08:12]}
{[%emt 00:00:40]} Rd6 {[%clk 00:00:32]} {[%emt 00:00:32]} 37. Ra8 {[%clk
00:08:23]} {[%emt 00:00:19]} Bc3 {[%clk 00:00:33]} {[%emt 00:00:29]} 38. Ra7
{[%clk 00:08:21]} {[%emt 00:00:33]} Rf6 {[%clk 00:00:39]} {[%emt 00:00:23]} 39.
f4 {[%clk 00:05:26]} {[%emt 00:03:25]} g5 {[%clk 00:00:40]} {[%emt 00:00:28]}
40. Kg2 {[%clk 00:05:25]} {[%emt 00:00:31]} Bb4 {[%clk 00:00:33]} {[%emt
00:00:37]} 41. Kf3 {[%clk 00:02:02]} {[%emt 00:03:52]} h5 {[%clk 00:29:26]}
{[%emt 00:01:37]} 42. Rd7 {[%clk 00:27:53]} {[%emt 00:04:40]} h4 {[%clk
00:22:57]} {[%emt 00:06:59]} 43. e4 {[%clk 00:16:59]} {[%emt 00:11:24]} hxg3
{[%clk 00:19:55]} {[%emt 00:03:32]} 44. hxg3 {[%clk 00:16:51]} {[%emt
00:00:38]} gxf4 {[%clk 00:13:00]} {[%emt 00:07:25]} 45. e5 {[%clk 00:15:09]}
{[%emt 00:02:12]} Rf5 {[%clk 00:12:38]} {[%emt 00:00:51]} 46. gxf4 {[%clk
00:15:04]} 1-0